[Event "EYTCC Girls U18 2022"]
[Site "Thessaloniki"]
[Date "2022.07.17"]
[Round "6.6"]
[White "Kochavi, Dana"]
[Black "Bashylina, Luisa"]
[Result "1/2-1/2"]
[ECO "B90"]
[WhiteElo "1885"]
[BlackElo "2041"]
[Annotator "TA"]
[PlyCount "64"]
[EventDate "2022.07.12"]
[EventType "team-tourn"]
[EventCountry "GRE"]
[SourceTitle "playchess.com"]
[Source "ChessBase"]
[SourceQuality "1"]
[WhiteTeam "Israel"]
[BlackTeam "Germany"]
[WhiteTeamCountry "ISR"]
[BlackTeamCountry "GER"]
[TimeControl "40/5400+30:1800+30"]

{[%evp 12,64,7,11,20,18,18,0,0,0,3,6,10,-34,-31,-69,-76,-75,-63,-130,-46,-37,-56,-83,-87,-81,-75,-83,-81,-84,-64,-83,-39,-33,-60,-86,-81,-62,-52,-58,-18,-45,-41,-42,0,0,0,0,0,0,0,0,0,0,10]} 1. e4 {[%emt 0:00:02]} c5 {[%emt 0:00:04]} 2. Nf3 {[%emt 0:00:13]} d6 {[%emt 0:00:05]} 3. d4 {[%emt 0:00:05]} cxd4 {[%emt 0:00:02]} 4. Nxd4 {[%emt 0:00:06]} Nf6 {[%emt 0:00:04]} 5. Nc3 {[%emt 0:00:11]} a6 {[%emt 0:00:03]} 6. h3 {[%emt 0:00:05]} e5 {[%emt 0:00:03]} 7. Nde2 {[%emt 0:00:04]} h5 {[%emt 0:00:04] B90: Sicilian Najdorf: Unusual White 6th moves, 6 Be3 Ng4 and 6 Be3 e5.} 8. Bg5 {[%emt 0:00:05]} Be6 {[%emt 0:00:08]} 9. a4 {[%emt 0:00:06]} Be7 {[%emt 0:09:41][%cal Of6e4]} 10. g3 {[%emt 0:00:09]} Nc6 {[%emt 0:01:21][%cal Of6e4]} 11. Bg2 {[%emt 0:02:20] [#]} Nb4 $146 {[%emt 0:01:30]} ({Predecessor:} 11... O-O 12. Qd2 Rc8 13. O-O Nh7 14. Bxe7 Qxe7 15. Rad1 Rfd8 16. b3 h4 17. f4 Nb4 {1-0 (53) Gu,T (2158)-Paramzina,A (2117) Moscow 2014}) 12. Bxf6 {[%emt 0:09:24]} Bxf6 {[%emt 0:00:19]} 13. Nd5 {[%emt 0:00:16]} Nxd5 {[%emt 0:01:15]} 14. exd5 {[%emt 0:00:09]} Bf5 {[%emt 0:00:15]} 15. O-O {[%emt 0:00:43] [#]} ({Better is} 15. h4 $15) 15... O-O {[%emt 0:00:46]} ({Black should try} 15... Qc8 $1 $17 16. h4 Qxc2 17. Qxc2 Bxc2) 16. Nc3 $15 {[%emt 0:05:30]} g6 {[%emt 0:08:52]} 17. g4 {[%emt 0:01:05]} hxg4 {[%emt 0:00:46]} 18. hxg4 {[%emt 0:00:06]} Bd7 {[%emt 0:04:28]} 19. Ne4 {[%emt 0:08:23]} Be7 {[%emt 0:03:01]} 20. Ra3 {[%emt 0:07:54]} Kg7 {[%emt 0:03:19]} 21. c4 {[%emt 0:05:18]} Rh8 {[%emt 0:18:18][%cal Bf8h8,Bh8h4,Bh4g4][%mdl 32]} 22. c5 {[%emt 0:20:50]} dxc5 {[%emt 0:04:48]} 23. d6 {[%emt 0:00:16]} Bg5 {[%emt 0:00:45]} 24. Nxc5 {[%emt 0:02:06]} Bf4 {[%emt 0:02:17] A strong pair of Bishops.} 25. Re1 {[%emt 0:04:31]} Rh4 {[%emt 0:05:26]} 26. Nxd7 {[%emt 0:10:54] Active counter play!} Qxd7 {[%emt 0:00:45]} 27. Rb3 {[%emt 0:00:53]} Rxg4 {[%emt 0:02:34] And now ...Rh8 would win.} (27... Rd8 $5 {[%cal Rh4g4]}) 28. Kf1 {[%emt 0:00:12] Threatens to win with Bh3. The position is equal.} Qxa4 {[%emt 0:26:42][%cal Of4d2] [#] White must now prevent ...Bd2!} 29. Rxb7 {[%emt 0:01:08]} Qc4+ {[%emt 0:01:19]} 30. Qe2 {[%emt 0:00:45] Really sharp!} Qxe2+ {[%emt 0:00:37]} 31. Rxe2 {[%emt 0:00:07]} Rd8 {[%emt 0:01:33]} 32. d7 {[%emt 0:04:04]} Bh2 {[%emt 0:02:51] Weighted Error Value: White=0.10 (very precise) /Black=0.10 (very precise)} 1/2-1/2

[Event "EYTCC Girls U18 2022"]
[Site "Thessaloniki"]
[Date "2022.07.17"]
[Round "6.7"]
[White "Bondar, Daria"]
[Black "Ruzic, Pia Marie"]
[Result "1/2-1/2"]
[ECO "C02"]
[WhiteElo "1566"]
[BlackElo "2025"]
[Annotator "TA"]
[PlyCount "110"]
[EventDate "2022.07.12"]
[EventType "team-tourn"]
[EventCountry "GRE"]
[SourceTitle "playchess.com"]
[Source "ChessBase"]
[SourceQuality "1"]
[WhiteTeam "Ukraine"]
[BlackTeam "Slovenia"]
[WhiteTeamCountry "UKR"]
[BlackTeamCountry "SLO"]
[TimeControl "40/5400+30:1800+30"]

{[%evp 22,110,0,-23,14,10,16,20,0,0,0,0,0,-6,-6,-13,0,0,0,0,0,0,35,8,7,0,38,0,16,-28,-30,-34,-34,-34,-27,-51,-58,-49,-42,-47,-22,-62,-47,-73,-68,-98,-98,-91,-88,-98,-93,-91,-94,-189,-162,-156,-151,-162,-65,-79,-50,-56,-50,-50,-50,-63,-50,-63,-50,-50,-50,-52,-56,-50,0,-17,-17,-8,-8,-91,-91,-105,-105,-102,-118,-81,-88,-81,-74,-74,0]} 1. e4 {[%emt 0:00:01][%cal Be2e4,Be4e5][%mdl 32]} e6 {[%emt 0:00:06]} 2. d4 {[%emt 0:00:04]} d5 {[%emt 0:00:06]} 3. e5 {[%emt 0:00:03]} c5 {[%emt 0:00:08]} 4. c3 {[%emt 0:00:03]} Nc6 {[%emt 0:00:09]} 5. Nf3 {[%emt 0:00:04]} Bd7 {[%emt 0:00:20]} 6. Be2 {[%emt 0:00:06]} Nge7 {[%emt 0:00:29]} 7. Na3 {[%emt 0:00:31]} cxd4 {[%emt 0:02:27]} 8. cxd4 {[%emt 0:00:05]} Nf5 {[%emt 0:00:06]} 9. Nc2 {[%emt 0:00:04]} Be7 {[%emt 0:00:39]} 10. O-O {[%emt 0:00:38]} O-O {[%emt 0:00:40] 10...h5 is vanishing.} 11. Ne3 {[%emt 0:05:23]} Nxe3 {[%emt 0:16:13]} 12. Bxe3 {[%emt 0:02:38]} f6 {[%emt 0:00:13] [#] C02: French: Advance Variation.} 13. Rc1 $146 {[%emt 0:07:23]} ({Predecessor:} 13. a3 Rc8 14. Bd3 Be8 15. Qd2 fxe5 16. dxe5 Qc7 17. Rac1 Bh5 18. Nd4 Qxe5 19. f4 Qd6 20. f5 {1-0 (29) Hlavac,T (1439)-Mendelova,A (1131) Piestany 2022}) 13... Be8 {[%emt 0:04:24]} 14. a3 {[%emt 0:09:35]} Bh5 {[%emt 0:03:42] The position is equal.} 15. Ne1 {[%emt 0:16:46] Threatens to win with exf6.} Bxe2 {[%emt 0:07:47]} 16. Qxe2 {[%emt 0:00:02]} f5 {[%emt 0:00:13]} 17. f4 {[%emt 0:16:28]} Na5 {[%emt 0:06:24]} 18. Nd3 {[%emt 0:08:02]} Nc4 {[%emt 0:02:53]} 19. Nc5 {[%emt 0:07:09]} Bxc5 {[%emt 0:02:34]} 20. dxc5 {[%emt 0:00:02]} Qe8 {[%emt 0:04:26]} 21. Bd4 {[%emt 0:03:32]} Qc6 {[%emt 0:10:38]} 22. Qc2 {[%emt 0:01:31]} Rfc8 {[%emt 0:04:46]} 23. a4 {[%emt 0:02:26]} Nb6 {[%emt 0:04:23]} 24. b3 {[%emt 0:01:22]} (24. cxb6 $2 Qxc2 25. Rxc2 Rxc2 26. bxa7 Rc4 $19) 24... a5 {[%emt 0:00:28]} 25. Qd3 {[%emt 0:02:38]} (25. g4 $5 fxg4 26. f5 $16) 25... Nd7 {[%emt 0:00:25]} 26. Qb5 {[%emt 0:01:12]} Nb8 {[%emt 0:01:42]} 27. Rc3 {[%emt 0:01:36]} Qe8 {[%emt 0:04:37]} 28. Kf2 {[%emt 0:08:01]} (28. Qxb7 $2 Nc6 29. Bf2 (29. Rg3 $2 g6 $19) 29... Rcb8 $19) 28... Nc6 {[%emt 0:05:42]} 29. Qd3 {[%emt 0:02:42]} Qh5 {[%emt 0:03:18]} 30. Kg1 {[%emt 0:00:25]} Kh8 {[%emt 0:00:47]} 31. g3 {[%emt 0:03:30]} Qh3 {[%emt 0:02:16]} 32. Rd1 {[%emt 0:00:39]} Rc7 {[%emt 0:01:28][%cal Og7g5]} 33. Bf2 {[%emt 0:00:27]} Rg8 {[%emt 0:00:59]} 34. Qf1 {[%emt 0:00:23]} Qg4 {[%emt 0:00:11]} 35. h3 {[%emt 0:00:58]} Qh5 {[%emt 0:00:09]} 36. Kh2 {[%emt 0:00:13]} g5 {[%emt 0:00:32]} 37. Qd3 {[%emt 0:00:53]} (37. Rd2 $17 {is a better defense.}) 37... gxf4 {[%emt 0:00:59]} 38. gxf4 {[%emt 0:00:02]} Rcg7 {[%emt 0:05:42] aiming for ...Rg2+.} ({Worse is} 38... Qg6 39. Rg1 Qh5 40. Qd1 $11) 39. Rg1 {[%emt 0:00:07] [#] Inhibits Rg2+.} Rxg1 {[%emt 0:00:21]} ({Black should try} 39... Nxe5 $1 $19 {[%mdl 512]} 40. Qf1 (40. fxe5 $2 Rxg1 41. Bxg1 Qg5 $19) 40... Rxg1 41. Bxg1 Nc6) 40. Bxg1 $15 {[%emt 0:00:00]} Qh4 {[%emt 0:00:00]} (40... d4 $5 41. Qf3 Rg4 $15) 41. Qd2 {[%emt 0:08:09]} Rg4 {[%emt 0:09:50]} 42. Bf2 {[%emt 0:02:56]} Qh6 {[%emt 0:00:07]} 43. Bg3 {[%emt 0:00:33]} Rg7 {[%emt 0:02:20]} 44. Qf2 {[%emt 0:01:12]} Qh5 {[%emt 0:01:41]} 45. Bh4 {[%emt 0:01:36] Hoping for Bf6.} Rg6 {[%emt 0:01:01]} 46. Bf6+ {[%emt 0:01:28]} Kg8 {[%emt 0:00:02]} 47. Qf1 {[%emt 0:04:36] Inhibits Qd1.} Nd4 {[%emt 0:05:16]} (47... Kf8 $15) 48. Bd8 {[%emt 0:05:58]} Qe2+ {[%emt 0:02:14]} 49. Qxe2 {[%emt 0:00:11]} Nxe2 $11 {[%emt 0:00:01][%mdl 4096] Endgame KRB-KRN} 50. Rf3 {[%emt 0:00:20] [#]} (50. Re3 $11 Nxf4 51. Rf3) 50... Nd4 $1 $17 {[%emt 0:00:16] Black is better.} 51. Rd3 {[%emt 0:00:44] [#]} Nc6 {[%emt 0:00:05]} 52. Bc7 {[%emt 0:01:26]} Kf7 {[%emt 0:00:05]} 53. Rd1 {[%emt 0:03:35]} Ke7 {[%emt 0:00:19]} 54. Rd2 {[%emt 0:00:11]} Kd7 {[%emt 0:02:44]} 55. Bb6 {[%emt 0:01:21]} Ke7 {Weighted Error Value: White=0.14 (very precise) /Black=0.10 (very precise)} ({Better is} 55... Rg7 $17) 1/2-1/2

[Event "EYTCC Girls U18 2022"]
[Site "Thessaloniki"]
[Date "2022.07.17"]
[Round "6.8"]
[White "Mihelic, Vesna"]
[Black "Russeva, Viktoria"]
[Result "1-0"]
[ECO "B53"]
[WhiteElo "2029"]
[BlackElo "1866"]
[Annotator "TA"]
[PlyCount "53"]
[EventDate "2022.07.12"]
[EventType "team-tourn"]
[EventCountry "GRE"]
[SourceTitle "playchess.com"]
[Source "ChessBase"]
[SourceQuality "1"]
[WhiteTeam "Slovenia"]
[BlackTeam "Ukraine"]
[WhiteTeamCountry "SLO"]
[BlackTeamCountry "UKR"]
[TimeControl "40/5400+30:1800+30"]

{[%evp 9,53,4,4,0,5,-20,-10,-20,-14,-17,0,-27,0,-30,0,5,4,8,98,73,99,44,132,137,175,150,224,198,196,208,215,210,197,191,545,560,572,574,572,556,687,219,29997,29998,29998,29999]} 1. e4 {[%emt 0:00:03]} c5 {[%emt 0:00:08]} 2. Nf3 {[%emt 0:00:06]} d6 {[%emt 0:00:04]} 3. d4 {[%emt 0:00:05]} cxd4 {[%emt 0:00:05]} 4. Qxd4 {[%emt 0:00:04]} Nf6 {[%emt 0:00:47]} 5. h3 {[%emt 0:00:12]} Nc6 {[%emt 0:01:27]} 6. Qe3 {[%emt 0:00:39] B53: Sicilian: 2...d6: Lines with Qxd4.} g6 {[%emt 0:00:46]} 7. c4 {[%emt 0:01:00]} Bg7 {[%emt 0:00:46]} 8. Nc3 {[%emt 0:00:15] The position is equal.} O-O {[%emt 0:02:33]} 9. Be2 {[%emt 0:01:27]} Nd7 {[%emt 0:10:24]} 10. O-O {[%emt 0:02:13]} Nc5 {[%emt 0:04:05]} 11. Rb1 {[%emt 0:28:17]} f5 {[%emt 0:15:11]} (11... Bxc3 $5 12. bxc3 Nxe4 $1 $11) 12. b4 {[%emt 0:08:08][%cal Bb2b4,Bb4b5][%mdl 32] [#]} fxe4 $146 {[%emt 0:07:21]} ({Predecessor:} 12... f4 13. Qd2 Ne6 14. Nd5 Ned4 15. Bb2 Nxf3+ 16. Bxf3 Ne5 17. Bxe5 Bxe5 18. Rfd1 Bd7 {½-½ (58) Krueger,W (2093)-Kueppers,T (2282) Magdeburg 2020}) 13. Ng5 {[%emt 0:03:13]} (13. bxc5 exf3 14. Bxf3 Bd4 $15) (13. Nxe4 $2 Nxe4 14. Qxe4 Bf5 15. Qd5+ e6 $19) 13... Bd4 {[%emt 0:11:03]} (13... Nd3 $11 14. Qxe4 (14. Bxd3 exd3 15. Qxd3 Bf5 $11) 14... Nxf2 15. Qd5+ (15. Qh4 h6 $11) 15... e6 16. Nxe6 Bxe6 17. Qxe6+ Kh8 18. Rxf2 Rxf2 19. Kxf2 Bxc3) 14. Qg3 $16 {[%emt 0:03:49]} Ne6 {[%emt 0:18:08] [#] ...Be5 is the strong threat.} 15. Ncxe4 {[%emt 0:03:23]} (15. b5 $1 $16 {[%cal Rb5c6]} Ne5 16. Ncxe4) 15... Nxg5 {[%emt 0:04:52]} (15... Bg7 $14) 16. Nxg5 {[%emt 0:01:11] Strongly threatening b5.} (16. Bxg5 $6 Bg7 $11) 16... Bf5 {[%emt 0:01:21] [#]} 17. b5 $1 {[%emt 0:19:15]} ({Inferior is} 17. Qh4 h5 $11) 17... Qb6 {[%emt 0:06:32]} (17... Bxb1 $16 {keeps fighting.} 18. bxc6 Qb6) 18. Rb3 $40 {[%emt 0:07:15][%mdl 128] White is out for blood.} ({Don't take} 18. Qh4 $6 h5 $16) 18... Ne5 {[%emt 0:03:36]} 19. Qh4 {[%emt 0:04:29][%csl Gg5][%cal Rh4h7]} h5 {[%emt 0:03:20]} 20. Be3 {[%emt 0:02:27]} Bxe3 {[%emt 0:01:32]} 21. Rxe3 {[%emt 0:00:02] Threatens to win with Rd1.} Nf7 $2 {[%emt 0:02:27]} (21... Rf6 22. Nf3 Rc8) 22. g4 $18 {[%emt 0:02:23]} Nxg5 {[%emt 0:01:36]} 23. Qxg5 {[%emt 0:00:37]} hxg4 {[%emt 0:01:57]} 24. hxg4 {[%emt 0:00:02]} Bc2 {[%emt 0:00:38]} 25. Rxe7 $2 {[%emt 0:06:23]} (25. Bd1 Qc5 26. Qxc5 dxc5 27. Bxc2) 25... Rae8 $2 {[%emt 0:00:24]} (25... Qd4 $18 26. Rxb7 Rae8) 26. Qd5+ {[%emt 0:00:12]} Kh8 {[%emt 0:00:21]} 27. Qh1+ {[%emt 0:00:09] Weighted Error Value: White=0.29 (precise) /Black=0.63} 1-0

[Event "EYTCC Girls U18 2022"]
[Site "Thessaloniki"]
[Date "2022.07.17"]
[Round "6.9"]
[White "Alexandri, Dimitra"]
[Black "Buchholz, Maja"]
[Result "1/2-1/2"]
[ECO "D10"]
[WhiteElo "1683"]
[BlackElo "1879"]
[Annotator "NA COMBH"]
[PlyCount "122"]
[EventDate "2022.07.12"]
[EventType "team-tourn"]
[EventCountry "GRE"]
[SourceTitle "playchess.com"]
[Source "ChessBase"]
[SourceQuality "1"]
[WhiteTeam "Greece"]
[BlackTeam "Germany"]
[WhiteTeamCountry "GRE"]
[BlackTeamCountry "GER"]
[TimeControl "40/5400+30:1800+30"]

1. d4 {[%emt 0:00:02]} d5 {[%emt 0:00:06]} 2. c4 {[%emt 0:00:07]} c6 {[%emt 0:00:04]} 3. cxd5 {[%emt 0:00:08]} cxd5 {[%emt 0:00:05]} 4. Bf4 {[%emt 0:00:11]} Nc6 {[%emt 0:00:10]} 5. e3 {[%emt 0:00:09]} Nf6 {[%emt 0:00:21]} 6. Nc3 {[%emt 0:00:08]} a6 {[%emt 0:00:22]} 7. Bd3 {[%emt 0:00:12]} Bg4 {[%emt 0:00:52]} 8. Nge2 {[%emt 0:00:12]} e6 {[%emt 0:01:10]} 9. O-O {[%emt 0:02:44]} Be7 {[%emt 0:01:59]} 10. Rc1 {[%emt 0:04:43]} O-O {[%emt 0:01:55]} 11. f3 {[%emt 0:00:19]} Bh5 {[%emt 0:00:29]} 12. Na4 {[%emt 0:00:54]} Nd7 {[%emt 0:02:41]} 13. Qb3 {[%emt 0:00:48]} Nb4 {[%emt 0:18:46]} 14. Bc7 {[%emt 0:09:51]} Qe8 {[%emt 0:00:15]} 15. Bb1 {[%emt 0:01:15]} b5 {[%emt 0:02:40]} 16. Nc5 {[%emt 0:03:05]} Nxc5 {[%emt 0:01:21]} 17. dxc5 {[%emt 0:00:10]} Rc8 {[%emt 0:04:33]} 18. Bb6 {[%emt 0:06:02]} Nc6 {[%emt 0:01:09]} 19. Nf4 {[%emt 0:00:29]} Bg6 {[%emt 0:00:40]} 20. Nxg6 {[%emt 0:03:26]} hxg6 {[%emt 0:00:18]} 21. f4 {[%emt 0:04:30]} Bf6 {[%emt 0:06:33]} 22. Bd3 {[%emt 0:10:10]} Qd7 {[%emt 0:20:59]} 23. Rcd1 {[%emt 0:05:19]} g5 {[%emt 0:04:32]} 24. f5 {[%emt 0:06:37]} Ne5 {[%emt 0:03:02]} 25. e4 {[%emt 0:02:39]} Qc6 {[%emt 0:03:55]} 26. fxe6 {[%emt 0:04:02]} dxe4 {[%emt 0:09:48]} 27. exf7+ {[%emt 0:00:16]} Rxf7 {[%emt 0:01:36]} 28. Be2 {[%emt 0:01:34]} Kf8 {[%emt 0:02:20]} 29. Qa3 {[%emt 0:02:28]} Nd7 {[%emt 0:02:58]} 30. Qxa6 {[%emt 0:04:01]} Nxc5 {[%emt 0:01:27]} 31. Qxb5 {[%emt 0:00:37]} Qxb5 {[%emt 0:02:16]} 32. Bxb5 {[%emt 0:00:16]} Rb7 {[%emt 0:03:26]} 33. Bxc5+ {[%emt 0:00:19]} Rxc5 {[%emt 0:00:05]} 34. a4 {[%emt 0:00:41]} Kg8 {[%emt 0:01:54]} 35. b3 {[%emt 0:02:12]} e3 {[%emt 0:00:58]} 36. Rfe1 {[%emt 0:01:31]} Rc3 {[%emt 0:00:37]} 37. Bc4+ {[%emt 0:00:39]} Kf8 {[%emt 0:00:39]} 38. Kf1 {[%emt 0:03:11]} Be5 {[%emt 0:01:03]} 39. g3 {[%emt 0:01:27]} Rb6 {[%emt 0:00:42]} 40. Ke2 {[%emt 0:00:00]} Rh6 {[%emt 0:00:00]} 41. Rh1 {[%emt 0:04:14]} Rf6 {[%emt 0:08:51]} 42. Rhf1 {[%emt 0:01:46]} Bc7 {[%emt 0:00:20]} 43. Rxf6+ {[%emt 0:01:11]} gxf6 {[%emt 0:00:10]} 44. Rd3 {[%emt 0:01:04]} Rxd3 {[%emt 0:02:32]} 45. Bxd3 {[%emt 0:00:38]} Bb6 {[%emt 0:04:06]} 46. b4 {[%emt 0:02:33]} Ke7 {[%emt 0:00:14]} 47. a5 {[%emt 0:01:05]} Bd4 {[%emt 0:00:18]} 48. b5 {[%emt 0:00:46]} Bc3 {[%emt 0:03:29]} 49. b6 {[%emt 0:03:18]} Bxa5 {[%emt 0:00:13]} 50. b7 {[%emt 0:00:09]} Bc7 {[%emt 0:00:06]} 51. Kxe3 {[%emt 0:00:07]} Ke6 {[%emt 0:01:22]} 52. Kf3 {[%emt 0:05:28]} f5 {[%emt 0:02:00]} 53. h3 {[%emt 0:01:33]} Kf6 {[%emt 0:02:50]} 54. g4 {[%emt 0:05:00]} fxg4+ {[%emt 0:00:31]} 55. hxg4 {[%emt 0:00:28]} Ke5 {[%emt 0:01:53]} 56. Bf5 {[%emt 0:00:48]} Kd4 {[%emt 0:01:53]} 57. Ke2 {[%emt 0:01:19]} Kc5 {[%emt 0:00:22]} 58. Kd3 {[%emt 0:00:17]} Kb6 {[%emt 0:00:08]} 59. Bc8 {[%emt 0:00:28]} Ka7 {[%emt 0:00:05]} 60. Ke4 {[%emt 0:00:13]} Kb8 {[%emt 0:00:14]} 61. Kf5 {[%emt 0:00:15]} Bf4 {[%emt 0:00:07]} 1/2-1/2

[Event "EYTCC Girls U18 2022"]
[Site "Thessaloniki"]
[Date "2022.07.17"]
[Round "6.10"]
[White "Werner, Rosalie"]
[Black "Alexandri, Vasiliki"]
[Result "1/2-1/2"]
[ECO "C97"]
[WhiteElo "1783"]
[BlackElo "1527"]
[Annotator "NA COMBH"]
[PlyCount "94"]
[EventDate "2022.07.12"]
[EventType "team-tourn"]
[EventCountry "GRE"]
[SourceTitle "playchess.com"]
[Source "ChessBase"]
[SourceQuality "1"]
[WhiteTeam "Germany"]
[BlackTeam "Greece"]
[WhiteTeamCountry "GER"]
[BlackTeamCountry "GRE"]
[TimeControl "40/5400+30:1800+30"]

1. e4 {[%emt 0:00:03]} e5 {[%emt 0:00:06]} 2. Nf3 {[%emt 0:00:04]} Nc6 {[%emt 0:00:06]} 3. Bb5 {[%emt 0:00:06]} a6 {[%emt 0:00:05]} 4. Ba4 {[%emt 0:00:05]} Nf6 {[%emt 0:00:10]} 5. O-O {[%emt 0:00:07]} Be7 {[%emt 0:00:09]} 6. Re1 {[%emt 0:00:07]} b5 {[%emt 0:00:06]} 7. Bb3 {[%emt 0:00:07]} d6 {[%emt 0:00:11]} 8. c3 {[%emt 0:00:08]} O-O {[%emt 0:00:09]} 9. h3 {[%emt 0:00:08]} Na5 {[%emt 0:00:11]} 10. Bc2 {[%emt 0:00:07]} c5 {[%emt 0:00:28]} 11. d4 {[%emt 0:00:07]} Qc7 {[%emt 0:00:33]} 12. d5 {[%emt 0:00:10]} Bd7 {[%emt 0:00:44]} 13. b3 {[%emt 0:00:44]} c4 {[%emt 0:08:46]} 14. b4 {[%emt 0:00:37]} Nb7 {[%emt 0:00:07]} 15. a4 {[%emt 0:02:06]} a5 {[%emt 0:02:57]} 16. axb5 {[%emt 0:08:44]} Bxb5 {[%emt 0:00:50]} 17. bxa5 {[%emt 0:27:26]} Nxa5 {[%emt 0:01:07]} 18. Ba3 {[%emt 0:00:41]} Nb7 {[%emt 0:01:09]} 19. Nbd2 {[%emt 0:03:26]} Ra6 {[%emt 0:04:00]} 20. Bb4 {[%emt 0:01:36]} Rfa8 {[%emt 0:00:49]} 21. Rxa6 {[%emt 0:01:09]} Rxa6 {[%emt 0:00:07]} 22. Nf1 {[%emt 0:02:21]} Nc5 {[%emt 0:04:10]} 23. N3d2 {[%emt 0:02:13]} Nfd7 {[%emt 0:21:13]} 24. Ne3 {[%emt 0:07:52]} Nb6 {[%emt 0:01:14]} 25. Qg4 {[%emt 0:18:35]} Kh8 {[%emt 0:03:33]} 26. Rb1 {[%emt 0:11:09]} Ra8 {[%emt 0:19:00]} 27. Bd1 {[%emt 0:02:32]} Ra2 {[%emt 0:02:54]} 28. Nf5 {[%emt 0:08:51]} Bf8 {[%emt 0:01:04]} 29. Nf3 {[%emt 0:00:51]} g6 {[%emt 0:01:14]} 30. Ne3 {[%emt 0:01:06]} Nd3 {[%emt 0:15:55]} 31. Bc2 {[%emt 0:01:09]} Nxb4 {[%emt 0:02:26]} 32. Rxb4 {[%emt 0:00:08]} Ba6 {[%emt 0:02:22]} 33. Qh4 {[%emt 0:00:37]} Be7 {[%emt 0:01:27]} 34. Qh6 {[%emt 0:00:14]} Nd7 {[%emt 0:00:41]} 35. Ba4 {[%emt 0:00:35]} Bf8 {[%emt 0:01:27]} 36. Qh4 {[%emt 0:00:17]} Kg8 {[%emt 0:00:49]} 37. Bxd7 {[%emt 0:01:17]} Qxd7 {[%emt 0:00:05]} 38. Nxc4 {[%emt 0:00:08]} Ra4 {[%emt 0:01:07]} 39. Nb6 {[%emt 0:00:42]} Ra1+ {[%emt 0:00:05]} 40. Kh2 {[%emt 0:00:00]} Qc7 {[%emt 0:00:00]} 41. c4 {[%emt 0:06:33]} Rc1 {[%emt 0:04:54]} 42. Nd2 {[%emt 0:07:04]} Rc2 {[%emt 0:00:48]} 43. Qg5 {[%emt 0:02:32]} Qc5 {[%emt 0:04:09]} 44. Nd7 {[%emt 0:06:09]} Qc8 {[%emt 0:01:40]} 45. Nb6 {[%emt 0:06:01]} Qc5 {[%emt 0:01:31]} 46. Nd7 {[%emt 0:03:43]} Qc8 {[%emt 0:00:27]} 47. Nb6 {[%emt 0:02:25]} Qc5 1/2-1/2

[Event "EYTCC Girls U18 2022"]
[Site "Thessaloniki"]
[Date "2022.07.17"]
[Round "6.11"]
[White "Sheikh, Anum"]
[Black "Dereka, Konstantina"]
[Result "1-0"]
[ECO "B20"]
[WhiteElo "1799"]
[BlackElo "1451"]
[Annotator "NA COMBH"]
[PlyCount "95"]
[EventDate "2022.07.12"]
[EventType "team-tourn"]
[EventCountry "GRE"]
[SourceTitle "playchess.com"]
[Source "ChessBase"]
[SourceQuality "1"]
[WhiteTeam "England"]
[BlackTeam "Greece"]
[WhiteTeamCountry "ENG"]
[BlackTeamCountry "GRE"]
[TimeControl "40/5400+30:1800+30"]

1. e4 {[%emt 0:00:02]} c5 {[%emt 0:00:05]} 2. g3 {[%emt 0:00:04]} Nc6 {[%emt 0:01:23]} 3. Bg2 {[%emt 0:00:08]} Nf6 {[%emt 0:02:13]} 4. Ne2 {[%emt 0:03:24]} e6 {[%emt 0:04:27]} 5. f4 {[%emt 0:00:24]} d6 {[%emt 0:04:22]} 6. d3 {[%emt 0:01:05]} Be7 {[%emt 0:01:41]} 7. Nbc3 {[%emt 0:00:25]} O-O {[%emt 0:01:45]} 8. O-O {[%emt 0:00:07]} Qc7 {[%emt 0:15:17]} 9. h3 {[%emt 0:00:42]} Rd8 {[%emt 0:01:34]} 10. g4 {[%emt 0:03:08]} h6 {[%emt 0:04:53]} 11. g5 {[%emt 0:12:20]} hxg5 {[%emt 0:00:50]} 12. fxg5 {[%emt 0:00:07]} Nh7 {[%emt 0:03:25]} 13. h4 {[%emt 0:01:02]} Ne5 {[%emt 0:03:06]} 14. Ng3 {[%emt 0:12:36]} f6 {[%emt 0:10:15]} 15. gxf6 {[%emt 0:16:21]} Bxf6 {[%emt 0:03:03]} 16. h5 {[%emt 0:05:04]} Bd7 {[%emt 0:10:02]} 17. h6 {[%emt 0:03:19]} Be8 {[%emt 0:02:06]} 18. Nh5 {[%emt 0:09:14]} Bxh5 {[%emt 0:00:10]} 19. Qxh5 {[%emt 0:00:07]} Qf7 {[%emt 0:03:10]} 20. Qxf7+ {[%emt 0:03:00]} Nxf7 {[%emt 0:02:30]} 21. hxg7 {[%emt 0:00:41]} Kxg7 {[%emt 0:00:23]} 22. Be3 {[%emt 0:03:46]} Nhg5 {[%emt 0:02:57]} 23. Rf4 {[%emt 0:02:57]} Rh8 {[%emt 0:03:13]} 24. Rg4 {[%emt 0:01:03]} Kf8 {[%emt 0:01:44]} 25. Rf1 {[%emt 0:01:04]} Ke7 {[%emt 0:00:11]} 26. e5 {[%emt 0:06:43]} Nxe5 {[%emt 0:07:00]} 27. Rxg5 {[%emt 0:00:11]} Bxg5 {[%emt 0:00:05]} 28. Bxg5+ {[%emt 0:00:04]} Kd7 {[%emt 0:00:11]} 29. Bf6 {[%emt 0:04:20]} Rhf8 {[%emt 0:01:40]} 30. Bxe5 {[%emt 0:03:08]} Rxf1+ {[%emt 0:00:10]} 31. Kxf1 {[%emt 0:00:08]} dxe5 {[%emt 0:00:03]} 32. Bxb7 {[%emt 0:00:52]} Rb8 {[%emt 0:00:25]} 33. Ne4 {[%emt 0:00:27]} Kc7 {[%emt 0:01:38]} 34. Nxc5 {[%emt 0:00:53]} Kd6 {[%emt 0:00:30]} 35. b4 {[%emt 0:00:08]} Rh8 {[%emt 0:02:45]} 36. Bg2 {[%emt 0:01:00]} Rh4 {[%emt 0:01:29]} 37. a3 {[%emt 0:00:29]} Rf4+ {[%emt 0:01:36]} 38. Ke2 {[%emt 0:00:13]} Rh4 {[%emt 0:01:33]} 39. Nb7+ {[%emt 0:00:59]} Kc7 {[%emt 0:00:50]} 40. Na5 {[%emt 0:00:00]} Rh5 {[%emt 0:00:00]} 41. Nc6 {[%emt 0:00:58]} a6 {[%emt 0:03:22]} 42. Na5 {[%emt 0:01:21]} Kb6 {[%emt 0:01:11]} 43. a4 {[%emt 0:00:17]} Rg5 {[%emt 0:01:09]} 44. Kf2 {[%emt 0:00:47]} Rf5+ {[%emt 0:00:39]} 45. Bf3 {[%emt 0:00:08]} Kc7 {[%emt 0:01:44]} 46. c4 {[%emt 0:00:25]} Rf4 {[%emt 0:01:31]} 47. Nb3 {[%emt 0:00:48]} Rd4 {[%emt 0:01:39]} 48. Nxd4 {[%emt 0:00:05]} 1-0